bitfinex/quotes_SOLUSD_20240605
["timestamp","ask_amount","ask_price","bid_price","bid_amount"]
[1717605230897,7.05,174.76,174.72,2.1176]
[1717605231684,7.05,174.76,174.7,7.05]
[1717605231685,7.05,174.76,174.73,2.1175]
[1717605232002,7.05,174.77,174.73,2.1175]
[1717605232407,7.05,174.77,174.71,2.4576]
[1717605232408,2.1171,174.76,174.71,2.4576]
[1717605232786,2.1171,174.76,174.71,9.1057]
[1717605233005,9.1671,174.77,174.71,6.9881]
[1717605233305,9.1671,174.77,174.71,6.4881]
[1717605233503,2.1171,174.77,174.71,6.4881]
[1717605233708,9.1671,174.77,174.71,6.4881]
[1717605234004,7.05,174.77,174.7,0.17]
[1717605234208,6.3502,174.8,174.7,0.17]
[1717605234209,7.05,174.74,174.7,2.1178]
[1717605236201,2.1173,174.75,174.71,2.1177]
[1717605236405,7.05,174.74,174.71,2.1177]
[1717605238690,2.1172,174.76,174.71,2.1177]
[1717605238890,7.05,174.75,174.71,2.1177]
[1717605239194,7.05,174.75,174.72,2.1176]
[1717605239600,7.05,174.75,174.74,120.0]
[1717605240210,7.05,174.75,174.66,6.2679]
[1717605240211,7.05,174.75,174.7,120.0]
[1717605240399,9.1677,174.72,174.7,120.0]
[1717605240797,7.05,174.72,174.7,120.0]
[1717605241115,9.1676,174.72,174.7,120.0]
[1717605241690,2.1177,174.71,174.7,120.0]
[1717605242122,9.1677,174.71,174.7,120.0]
[1717605243715,7.05,174.71,174.7,120.0]
[1717605244093,9.1677,174.71,174.7,120.0]
[1717605251704,2.1182,174.67,174.66,120.0]
[1717605252014,9.1682,174.67,174.66,120.0]
[1717605254396,7.05,174.67,174.66,120.0]
[1717605255998,7.05,174.67,174.63,120.0]
[1717605256195,7.05,174.64,174.63,120.0]
[1717605256615,7.05,174.64,174.61,2.1189]
[1717605257026,4.2362,174.69,174.65,10.4465501]
[1717605257223,4.2362,174.69,174.62,2.1188]
[1717605257224,7.05,174.66,174.62,2.1188]
[1717605257445,7.05,174.65,174.64,10.4465501]
[1717605257799,2.1183,174.67,174.64,10.4465501]
[1717605258111,7.05,174.66,174.64,10.4465501]
[1717605258312,7.05,174.65,174.64,10.4465501]
[1717605258508,7.05,174.65,174.62,2.1188]
[1717605258710,7.05,174.65,174.64,10.4465501]
[1717605259229,7.05,174.65,174.61,2.1189]
[1717605259526,7.05,174.64,174.6,2.1191]
[1717605259725,7.05,174.64,174.63,10.4465501]
[1717605259902,7.05,174.64,174.62,10.4465501]
[1717605260103,2.1189,174.62,174.57,6.5884]
[1717605260405,7.05,174.61,174.57,2.1193]
[1717605260605,7.05,174.61,174.6,10.4465501]
[1717605260923,7.05,174.61,174.58,2.1193]
[1717605262039,7.05,174.61,174.6,10.4465501]
[1717605262224,7.05,174.61,174.58,2.1193]
[1717605262419,4.2366,174.67,174.55,5.717]
[1717605262734,2.1185,174.65,174.61,2.1189]
[1717605262945,9.1686,174.64,174.62,10.4465501]
[1717605263115,7.05,174.64,174.62,10.4465501]
[1717605263315,2.1188,174.63,174.59,2.1191]
[1717605263525,9.1688,174.63,174.59,2.1191]
[1717605263828,2.1187,174.64,174.59,2.1191]
[1717605264013,2.1186,174.64,174.6,2.1191]
[1717605264217,7.05,174.63,174.62,10.4465501]
[1717605264423,7.05,174.63,174.57,5.717]
[1717605264747,2.1182,174.67,174.6,9.169]
[1717605264919,7.05,174.66,174.65,10.4465501]
[1717605265250,2.1184,174.66,174.62,2.1188]
[1717605265553,9.1683,174.67,174.62,2.1188]
[1717605265739,2.1183,174.67,174.62,2.1188]
[1717605266054,9.1683,174.67,174.62,2.1188]
[1717605266344,2.1184,174.66,174.62,8.6033]
[1717605267018,9.1684,174.66,174.62,8.6033]
[1717605267231,2.1183,174.67,174.63,2.1187]
[1717605267425,9.1682,174.68,174.64,2.1186]
[1717605267941,9.1682,174.68,174.63,8.5968]
[1717605268248,2.1182,174.67,174.63,8.5968]
[1717605269344,2.1182,174.67,174.63,15.6468]
[1717605269555,2.1184,174.66,174.63,6.4782]
[1717605269734,2.1185,174.65,174.62,7.05]
[1717605270050,2.1187,174.63,174.59,9.1692]
[1717605270224,2.1187,174.63,174.59,15.7251]
[1717605270557,2.1187,174.64,174.61,5.717]
[1717605270847,2.1185,174.65,174.61,13.9235]
[1717605271044,4.2366,174.67,174.62,5.717]
[1717605271250,2.1184,174.66,174.62,2.1188]
[1717605271622,7.05,174.67,174.61,8.2064]
[1717605271623,2.1185,174.65,174.61,8.2064]
[1717605272322,7.05,174.67,174.65,47.8815]
[1717605272948,7.05,174.66,174.65,47.8815]
[1717605273130,9.1684,174.66,174.65,47.8815]
[1717605274925,34.4802,174.66,174.65,47.8815]
[1717605275123,50.2346,174.66,174.65,47.8815]
[1717605275335,50.2346,174.66,174.65,27.2167598]
[1717605279246,34.8202,174.66,174.65,27.2167598]
[1717605281623,28.404,174.66,174.65,27.2167598]
[1717605281820,28.234,174.66,174.65,27.2167598]
[1717605282734,28.404,174.66,174.65,27.2167598]
[1717605282932,28.234,174.66,174.65,27.2167598]
[1717605284330,21.184,174.66,174.65,27.2167598]
[1717605285049,28.234,174.66,174.65,27.2167598]
[1717605287941,13.8838,174.66,174.55,11.8515]
[1717605288144,1.02774789,174.65,174.59,110.48863552]
[1717605288369,7.05,174.6,174.59,110.48863552]
[1717605288530,21.8842,174.6,174.59,110.48863552]
[1717605289237,7.05,174.6,174.55,6.1345]
[1717605289468,7.05,174.57,174.56,110.48863552]
[1717605290160,7.05,174.57,174.55,6.1345]
[1717605290462,7.05,174.56,174.55,116.62313552]
[1717605290632,9.1696,174.56,174.55,6.1345]
[1717605292163,2.1196,174.56,174.55,6.1345]
[1717605292767,2.1201,174.52,174.49,0.82543]
[1717605293066,2.1203,174.5,174.49,0.82543]
[1717605293444,9.1703,174.5,174.49,0.82543]
[1717605293667,7.05,174.5,174.49,0.82543]
[1717605294173,9.1703,174.5,174.49,0.82543]
[1717605294355,19.7719,174.5,174.49,0.82543]
[1717605294661,13.4109,174.5,174.49,0.82543]
[1717605295064,9.1703,174.5,174.49,0.82543]
[1717605295279,13.4109,174.5,174.49,0.82543]
[1717605296347,9.1703,174.5,174.49,0.82543]
[1717605296776,2.1203,174.5,174.49,0.82543]
[1717605296961,9.1703,174.5,174.49,0.82543]
[1717605299254,2.1203,174.5,174.49,0.82543]
[1717605299461,9.1703,174.5,174.49,0.82543]
[1717605299658,28.2532,174.5,174.49,0.82543]
[1717605300250,13.4109,174.5,174.49,0.82543]
[1717605300684,7.05,174.5,174.49,0.82543]
[1717605300859,5.9599338,174.57,174.49,0.82543]
[1717605301065,2.1201,174.52,174.49,7.36433]
[1717605301776,9.17,174.53,174.49,7.36433]
[1717605301983,2.1201,174.52,174.49,7.36433]
[1717605302179,2.1201,174.52,174.5,6.4271]
[1717605302487,2.1199,174.54,174.5,6.4271]
[1717605302646,7.05,174.54,174.5,6.4271]
[1717605302849,9.1699,174.54,174.51,6.2781]
[1717605303067,2.1199,174.54,174.53,82.42738498]
[1717605303271,11.2899,174.54,174.49,0.82543]
[1717605303464,4.2399,174.53,174.5,82.42738498]
[1717605303666,2.1203,174.5,174.49,83.25281498]
[1717605303850,9.1703,174.5,174.49,83.25281498]
[1717605304468,9.1703,174.5,174.49,0.82543]
[1717605304673,9.1703,174.5,174.49,83.25281498]
[1717605304851,9.1703,174.5,174.49,0.82543]
[1717605305050,7.05,174.5,174.49,83.25281498]
[1717605305245,7.05,174.5,174.49,0.82543]
[1717605305449,9.1703,174.5,174.49,83.25281498]
[1717605305860,9.1703,174.5,174.49,0.82543]
[1717605306067,7.05,174.5,174.49,83.25281498]
[1717605306458,19.7719,174.5,174.49,0.82543]
[1717605306665,28.2532,174.5,174.49,0.82543]
[1717605308865,34.3914,174.5,174.49,0.82543]
[1717605309065,35.58914789,174.5,174.49,0.82543]
[1717605310776,34.7314,174.5,174.49,0.82543]
[1717605310972,21.2032,174.5,174.49,0.82543]
[1717605311174,28.2532,174.5,174.49,0.82543]
[1717605312819,35.16394789,174.5,174.49,0.82543]
[1717605312962,34.4762,174.5,174.49,0.82543]
[1717605315373,21.2032,174.5,174.49,0.82543]
[1717605315583,28.2532,174.5,174.49,0.82543]
[1717605321775,29.11094789,174.5,174.49,0.82543]
[1717605322087,29.28094789,174.5,174.49,0.82543]
[1717605325973,28.5932,174.5,174.49,0.82543]
[1717605326174,28.4232,174.5,174.49,0.82543]
[1717605328100,28.2532,174.5,174.49,0.82543]
[1717605330583,29.11094789,174.5,174.49,0.82543]
[1717605331181,21.2032,174.5,174.49,0.82543]
[1717605331599,28.2532,174.5,174.49,0.82543]
[1717605332104,2.1203,174.5,174.49,0.82543]
[1717605332315,2.1203,174.5,174.49,77.55676419]
[1717605332475,9.1703,174.5,174.49,77.55676419]
[1717605332676,9.1703,174.5,174.49,0.82543]
[1717605333313,9.1703,174.5,174.49,77.55676419]
[1717605333491,9.1703,174.5,174.49,0.82543]
[1717605334321,9.1703,174.5,174.49,77.55676419]
[1717605334483,9.1703,174.5,174.49,0.82543]
[1717605335083,9.1703,174.5,174.49,77.55676419]
[1717605335313,9.1703,174.5,174.49,0.82543]
[1717605335496,28.2532,174.5,174.49,0.82543]
[1717605335682,19.7719,174.5,174.49,0.82543]
[1717605336299,19.7719,174.5,174.49,77.55676419]
[1717605336504,2.1203,174.5,174.49,77.55676419]
[1717605336699,9.1703,174.5,174.49,0.82543]
[1717605336928,9.1703,174.5,174.49,77.55676419]
[1717605337128,9.1703,174.5,174.49,0.82543]
[1717605337511,9.1703,174.5,174.49,77.55676419]
[1717605337721,9.1703,174.5,174.49,0.82543]
[1717605338144,2.1203,174.5,174.49,77.55676419]
[1717605338315,14.44172842,174.55,174.53,76.73133419]
[1717605338628,7.05,174.54,174.53,76.73133419]
[1717605338824,9.1699,174.54,174.53,76.73133419]
[1717605339000,4.2395,174.55,174.53,76.73133419]
[1717605339206,7.05,174.54,174.53,76.73133419]
[1717605339402,9.1699,174.54,174.52,6.1435]
[1717605340513,9.1699,174.54,174.53,11.75969767]
[1717605340732,9.1699,174.54,174.52,6.1435]
[1717605341033,7.05,174.54,174.52,6.1435]
[1717605341205,7.05,174.53,174.52,17.90319767]
[1717605341407,2.1201,174.52,174.49,7.31763]
[1717605341722,9.1702,174.51,174.5,11.75969767]
[1717605342214,2.1201,174.52,174.49,7.31763]
[1717605342400,7.05,174.5,174.49,7.31763]
[1717605342812,7.05,174.5,174.49,19.07732767]
[1717605343614,7.05,174.51,174.49,7.31763]
[1717605343809,2.12,174.53,174.49,7.31763]
[1717605344140,2.12,174.53,174.52,11.75969767]
[1717605344308,9.17,174.53,174.5,6.0851]
[1717605344703,2.12,174.53,174.52,11.75969767]
[1717605345011,9.17,174.53,174.5,6.0851]
[1717605345505,9.17,174.53,174.51,11.75969767]
[1717605345701,9.17,174.53,174.5,11.75969767]
[1717605345903,7.05,174.51,174.49,0.82543]
[1717605346509,7.05,174.51,174.5,11.75969767]
[1717605346909,7.05,174.51,174.49,0.82543]
[1717605347215,9.1703,174.5,174.49,0.82543]
[1717605347418,9.1703,174.5,174.49,12.58512767]
[1717605347737,9.1703,174.5,174.49,0.82543]
[1717605347910,7.05,174.5,174.49,0.82543]
[1717605348326,7.05,174.5,174.49,12.58512767]
[1717605348529,7.05,174.5,174.49,0.82543]
[1717605348903,9.1703,174.5,174.49,0.82543]
[1717605349834,7.05,174.5,174.49,0.82543]
[1717605350219,9.1703,174.5,174.49,0.82543]
[1717605351451,2.1203,174.5,174.49,0.82543]
[1717605351612,9.1703,174.5,174.49,0.82543]
[1717605354546,2.1203,174.5,174.49,0.82543]
[1717605354854,9.1703,174.5,174.49,0.82543]
[1717605355142,13.4109,174.5,174.49,0.82543]
[1717605356728,14.26864789,174.5,174.49,0.82543]
[1717605356931,13.4109,174.5,174.49,0.82543]
[1717605358446,19.7719,174.5,174.49,0.82543]
[1717605358617,28.2532,174.5,174.49,0.82543]
[1717605359745,19.7719,174.5,174.49,0.82543]
[1717605360557,2.1203,174.5,174.49,0.82543]
[1717605360851,9.1703,174.5,174.49,0.82543]
[1717605361048,9.1703,174.5,174.49,102.99347115]
[1717605361534,4.2397,174.54,174.49,0.82543]
[1717605361736,7.05,174.51,174.49,0.82543]
[1717605362038,9.1701,174.52,174.49,0.82543]
[1717605362243,9.1702,174.51,174.5,102.16804115]
[1717605362547,2.1202,174.51,174.5,102.16804115]
[1717605362737,9.1702,174.51,174.49,0.82543]
[1717605363052,7.05,174.51,174.5,102.16804115]
[1717605363235,7.05,174.51,174.49,0.82543]
[1717605363435,9.1703,174.5,174.49,0.82543]
[1717605363624,7.05,174.5,174.49,102.99347115]
[1717605363824,9.1703,174.5,174.49,0.82543]
[1717605364748,7.05,174.5,174.49,102.99347115]
[1717605365133,9.1703,174.5,174.49,0.82543]
[1717605365533,9.1703,174.5,174.49,111.66543786]
[1717605365739,9.1703,174.5,174.49,0.82543]
[1717605365945,9.1703,174.5,174.49,111.66543786]
[1717605366131,9.1703,174.5,174.49,0.82543]
[1717605366659,9.1703,174.5,174.49,111.66543786]
[1717605366858,9.1703,174.5,174.49,0.82543]
[1717605367063,13.4109,174.5,174.49,0.82543]
[1717605367266,19.7719,174.5,174.49,111.66543786]
[1717605368061,13.4109,174.5,174.49,0.82543]
[1717605368834,13.4109,174.5,174.49,111.66543786]
[1717605370430,13.4109,174.5,174.49,0.82543]
[1717605370746,13.4109,174.5,174.49,111.66543786]
[1717605371254,19.7719,174.5,174.49,111.66543786]
[1717605371454,29.11094789,174.5,174.49,0.82543]
[1717605371657,28.2532,174.5,174.49,0.82543]
[1717605372452,29.11094789,174.5,174.49,0.82543]
[1717605372663,28.2532,174.5,174.49,0.82543]
[1717605380847,28.2532,174.5,174.49,4.59558538]
[1717605381241,28.2532,174.5,174.49,0.82543]
[1717605382047,29.11094789,174.5,174.49,0.82543]
[1717605382989,28.2532,174.5,174.49,0.82543]
[1717605385977,2.1203,174.5,174.49,0.82543]
[1717605386157,4.2399,174.53,174.5,6.3161]
[1717605386362,7.05,174.52,174.5,6.3161]
[1717605386571,10.5998,174.53,174.52,3.77015538]
[1717605386763,17.6498,174.53,174.52,3.77015538]
[1717605386962,17.6498,174.53,174.51,3.77015538]
[1717605387274,7.05,174.52,174.5,6.3161]
[1717605387474,9.1702,174.51,174.5,10.08625538]
[1717605387978,7.05,174.51,174.49,0.82543]
[1717605388586,9.1702,174.51,174.49,0.82543]
[1717605388753,7.05,174.51,174.49,0.82543]
[1717605389073,7.05,174.51,174.5,3.77015538]
[1717605389454,9.1703,174.51,174.49,0.82543]
[1717605389883,9.1703,174.51,174.5,3.77015538]
[1717605390354,2.1203,174.51,174.49,0.82543]
[1717605390555,7.05,174.5,174.49,85.56611793]
[1717605391255,7.05,174.5,174.49,0.82543]
[1717605392254,2.1201,174.52,174.5,84.74068793]
[1717605392255,7.05,174.51,174.5,84.74068793]
[1717605392456,2.1201,174.52,174.51,84.74068793]
[1717605392671,2.1202,174.51,174.49,6.95853]
[1717605393189,9.1701,174.52,174.51,84.74068793]
[1717605393677,9.1701,174.52,174.49,6.95853]
[1717605393854,9.1701,174.52,174.51,84.74068793]
[1717605394174,7.05,174.52,174.51,84.74068793]
[1717605394782,7.05,174.52,174.49,6.95853]
[1717605394956,7.05,174.52,174.51,84.74068793]
[1717605395157,7.05,174.52,174.49,6.95853]
[1717605395558,7.05,174.52,174.51,84.74068793]
[1717605395760,7.05,174.52,174.49,0.82543]
[1717605395973,2.1202,174.51,174.49,0.82543]
[1717605396173,7.05,174.5,174.49,0.82543]
[1717605396358,9.1703,174.5,174.49,0.82543]
[1717605396554,2.1203,174.5,174.49,0.82543]
[1717605396881,9.1703,174.5,174.49,0.82543]
[1717605397178,9.1703,174.5,174.49,85.56611793]
[1717605397380,9.1703,174.5,174.49,0.82543]
[1717605397563,9.1703,174.5,174.49,85.56611793]
[1717605397877,9.1703,174.5,174.49,0.82543]
[1717605398079,9.1703,174.5,174.49,85.56611793]
[1717605398456,9.1703,174.5,174.49,0.82543]
[1717605398778,7.05,174.5,174.49,0.82543]
[1717605399165,9.1703,174.5,174.49,0.82543]
[1717605399372,9.1703,174.5,174.49,85.56611793]
[1717605399561,13.4109,174.5,174.49,0.82543]
[1717605400966,9.1703,174.5,174.49,0.82543]
[1717605401572,9.1703,174.5,174.49,85.56611793]
[1717605401769,2.1203,174.5,174.49,85.56611793]
[1717605401987,9.1703,174.5,174.49,0.82543]
[1717605402199,9.1703,174.5,174.49,85.56611793]
[1717605402498,9.1703,174.5,174.49,0.82543]
[1717605403590,9.1703,174.5,174.49,65.99831771]
[1717605403764,9.1703,174.5,174.49,0.82543]
[1717605403969,9.1703,174.5,174.49,65.99831771]
[1717605404276,9.1703,174.5,174.49,0.82543]
[1717605404481,9.1703,174.5,174.49,65.99831771]
[1717605404873,9.1703,174.5,174.49,0.82543]
[1717605405191,2.1203,174.5,174.49,0.82543]
[1717605405391,6.3599,174.53,174.51,65.17288771]
[1717605405595,2.12,174.53,174.52,65.17288771]
[1717605405892,14.8374,174.56,174.54,65.17288771]
[1717605405893,19.0767,174.56,174.54,65.17288771]
[1717605406096,7.05,174.55,174.49,9.50083]
[1717605406304,19.0767,174.56,174.49,9.50083]
[1717605406482,9.1699,174.54,174.53,65.17288771]
[1717605406681,9.1698,174.54,174.53,65.17288771]
[1717605406874,2.1198,174.54,174.53,65.17288771]
[1717605407075,9.1698,174.54,174.53,65.17288771]
[1717605407569,9.1698,174.54,174.5,6.3098]
[1717605407794,9.1698,174.54,174.53,65.17288771]
[1717605408106,9.1698,174.54,174.5,6.3098]
[1717605408469,9.1698,174.54,174.53,65.17288771]
[1717605408973,2.1198,174.54,174.49,19.06973]
[1717605409197,2.1197,174.55,174.51,6.666]
[1717605409503,9.1698,174.55,174.54,65.17288771]
[1717605409674,9.1698,174.55,174.51,6.666]
[1717605410205,9.1698,174.55,174.54,65.17288771]
[1717605410375,9.1698,174.55,174.51,6.666]
[1717605410576,2.1198,174.55,174.54,65.17288771]
[1717605411105,9.1698,174.55,174.54,65.17288771]
[1717605411270,2.1198,174.55,174.51,6.666]
[1717605411477,2.1198,174.55,174.54,65.17288771]
[1717605411975,2.1198,174.55,174.5,17.2851]
[1717605412178,2.1198,174.55,174.51,6.1776]
[1717605413108,2.1198,174.55,174.54,65.17288771]
[1717605413408,2.1198,174.55,174.5,30.7287]
[1717605413574,2.1198,174.55,174.54,65.17288771]
[1717605414387,2.1198,174.55,174.51,6.3937]
[1717605414702,2.1198,174.55,174.54,65.17288771]
[1717605414881,2.1198,174.55,174.51,6.3937]
[1717605415282,2.1198,174.55,174.54,65.17288771]
[1717605415701,2.1198,174.55,174.51,6.3937]
[1717605416316,2.1198,174.55,174.54,53.77995905]
[1717605417183,2.1198,174.55,174.51,6.3937]
[1717605417376,2.1198,174.55,174.54,53.77995905]
[1717605417801,4.2394,174.55,174.49,7.87543]
[1717605418004,7.05,174.53,174.49,0.82543]
[1717605418193,2.1202,174.51,174.49,0.82543]
[1717605418584,2.1203,174.5,174.49,0.82543]
[1717605418786,9.1703,174.5,174.49,0.82543]
[1717605419021,9.1703,174.5,174.49,54.60538905]
[1717605419507,9.1703,174.5,174.49,0.82543]
[1717605419714,7.05,174.5,174.49,54.60538905]
[1717605420083,2.1202,174.51,174.49,0.82543]
[1717605420401,7.05,174.5,174.49,0.82543]
[1717605420603,9.1703,174.5,174.49,0.82543]
[1717605420804,9.1703,174.5,174.49,54.60538905]
[1717605421005,7.05,174.5,174.49,54.60538905]
[1717605421183,7.05,174.5,174.49,0.82543]
[1717605421382,2.1201,174.52,174.51,53.77995905]
[1717605421606,9.1701,174.52,174.49,0.82543]
[1717605421992,10.5988,174.55,174.52,53.77995905]
[1717605421993,2.12,174.53,174.52,53.77995905]
[1717605422310,7.05,174.53,174.52,53.77995905]
[1717605422625,7.05,174.53,174.49,2.94583]
[1717605423104,9.1699,174.54,174.49,2.94583]
[1717605423495,9.1699,174.54,174.53,53.77995905]
[1717605423882,9.1699,174.54,174.49,9.54573]
[1717605424182,7.05,174.54,174.49,7.42533]
[1717605424383,9.1701,174.52,174.51,53.77995905]
[1717605424790,9.1701,174.52,174.49,0.82543]
[1717605424998,9.1701,174.52,174.51,53.77995905]
[1717605425198,2.12,174.53,174.52,53.77995905]
[1717605425397,12.7181,174.56,174.49,2.94583]
[1717605425706,7.05,174.53,174.52,53.77995905]
[1717605426723,7.05,174.53,174.49,7.15153]
[1717605426929,7.05,174.53,174.52,53.77995905]
[1717605427089,7.05,174.53,174.49,9.27193]
[1717605427294,7.05,174.55,174.52,2.1201]
[1717605427524,10.5939,174.63,174.55,2.1196]
[1717605427824,8.4746,174.64,174.63,45.44107054]
[1717605427825,2.1187,174.64,174.63,45.44107054]
[1717605428120,9.1685,174.65,174.64,45.44107054]
[1717605428333,2.1185,174.65,174.59,15.6668]
[1717605428493,2.1185,174.65,174.64,45.44107054]
[1717605428691,14.8271,174.68,174.64,45.44107054]
[1717605428893,2.1182,174.68,174.61,7.05]
[1717605429120,2.1182,174.68,174.62,9.1688]
[1717605429334,7.8419,174.7,174.64,2.1186]
[1717605429493,7.8419,174.7,174.69,45.44107054]
[1717605429689,5.724,174.7,174.65,7.05]
[1717605430024,5.724,174.7,174.69,45.44107054]
[1717605430390,5.724,174.7,174.65,13.5476]
[1717605430592,7.05,174.69,174.66,45.44107054]
[1717605430835,7.05,174.67,174.62,45.44107054]
[1717605430993,9.1687,174.63,174.57,15.3185]
[1717605431292,9.1688,174.62,174.6,45.44107054]
[1717605431493,9.169,174.61,174.59,45.44107054]
[1717605431723,7.05,174.6,174.58,45.44107054]
[1717605431908,2.119,174.61,174.55,5.724]
[1717605432111,2.119,174.61,174.59,45.44107054]
[1717605432430,2.1189,174.62,174.6,45.44107054]
[1717605432608,2.1189,174.62,174.56,2.1195]
[1717605433213,2.1189,174.62,174.6,45.44107054]
[1717605433503,2.1189,174.62,174.56,2.1195]
[1717605434020,2.1189,174.62,174.6,45.44107054]
[1717605434314,2.1187,174.64,174.63,45.44107054]
[1717605434540,2.1187,174.63,174.62,45.44107054]
[1717605434896,2.1187,174.63,174.57,2.1194]
[1717605435294,2.1187,174.63,174.62,45.44107054]
[1717605435498,2.1187,174.63,174.57,2.1194]
[1717605435724,2.1187,174.63,174.62,45.44107054]
[1717605436023,2.1187,174.63,174.57,2.1194]
[1717605436024,2.1186,174.65,174.58,2.1192]
[1717605436195,6.3551,174.67,174.64,45.44107054]
[1717605436393,6.3551,174.67,174.58,2.1192]
[1717605436699,2.1187,174.64,174.63,45.44107054]
[1717605436905,2.1187,174.64,174.58,2.1193]
[1717605437206,2.1187,174.64,174.63,45.44107054]
[1717605437726,2.1187,174.63,174.61,45.44107054]
[1717605438016,2.1188,174.62,174.57,2.1194]
[1717605438233,2.1188,174.62,174.6,45.44107054]
[1717605438404,2.1188,174.62,174.57,2.1194]
[1717605438593,2.1188,174.62,174.6,45.44107054]
[1717605438797,10.5939,174.63,174.54,20.0]
[1717605439018,2.1191,174.6,174.54,2.1197]
[1717605439420,2.1191,174.6,174.55,2.1197]
[1717605439899,2.119,174.61,174.55,2.1197]
[1717605440098,2.1191,174.6,174.54,2.1198]
[1717605440319,2.1194,174.58,174.52,8.5822]
[1717605440499,2.1194,174.58,174.54,45.44107054]
[1717605440701,2.1194,174.58,174.52,2.12]
[1717605441114,2.1191,174.6,174.53,2.1199]
[1717605441312,2.1191,174.6,174.54,2.1198]
[1717605441516,21.26,174.63,174.51,4.2403]
[1717605441826,2.119,174.61,174.51,10.6008]
[1717605442011,2.119,174.61,174.52,20.0]
[1717605442924,2.119,174.61,174.55,2.1197]
[1717605444329,18.7309,174.64,174.55,2.1197]
[1717605444500,6.0186,174.64,174.54,0.17]
[1717605444825,8.1373,174.64,174.57,2.1194]
[1717605445209,2.1188,174.63,174.57,2.1194]
[1717605445528,2.1189,174.62,174.56,2.1195]
[1717605446430,2.1188,174.63,174.56,2.1195]
[1717605447017,2.1189,174.62,174.56,2.1195]
[1717605448512,2.1188,174.63,174.56,2.1195]
[1717605449610,2.1189,174.62,174.56,2.1195]
[1717605450309,2.119,174.61,174.55,2.1196]
[1717605451406,10.5945,174.62,174.51,4.2403]
[1717605451609,2.1192,174.6,174.51,24.2403]
[1717605451827,2.1192,174.6,174.52,0.17]
[1717605453120,2.1192,174.6,174.52,20.17]
[1717605453431,2.119,174.61,174.55,2.1197]
[1717605453813,2.119,174.61,174.58,58.16721006]
[1717605454008,2.119,174.61,174.55,2.1197]
[1717605454209,2.119,174.61,174.59,58.16721006]
[1717605455225,2.119,174.61,174.6,58.16721006]
[1717605455427,2.119,174.61,174.55,2.1196]
[1717605455817,2.119,174.61,174.6,58.16721006]
[1717605456020,2.119,174.61,174.56,2.1196]
[1717605456328,2.119,174.61,174.6,58.16721006]
[1717605456724,2.119,174.61,174.56,2.1196]
[1717605456922,2.119,174.61,174.6,58.16721006]
[1717605457146,2.119,174.61,174.56,2.1196]
[1717605457436,70.30390419,174.69,174.63,58.16721006]
[1717605457437,7.09,174.66,174.63,58.16721006]
[1717605457639,2.1184,174.66,174.6,9.209]
[1717605457806,9.2084,174.66,174.63,58.16721006]
[1717605458320,9.2084,174.66,174.6,9.209]
[1717605458321,2.1185,174.65,174.6,7.09]
[1717605458733,2.1185,174.65,174.63,58.16721006]
[1717605459233,2.1185,174.65,174.6,7.09]
[1717605459433,2.1185,174.65,174.63,58.16721006]
[1717605460117,2.1185,174.65,174.6,7.09]
[1717605460311,2.1185,174.65,174.64,58.16721006]
[1717605460909,2.1185,174.65,174.6,7.09]
[1717605461214,2.1185,174.65,174.64,58.16721006]
[1717605461440,2.1183,174.67,174.61,9.2089]
[1717605461637,2.1184,174.66,174.6,2.119]
[1717605461841,2.1185,174.65,174.6,7.09]
[1717605462141,2.1185,174.65,174.63,58.16721006]